[Event "ITT 1st Parada Jamundi 2022"]
[Site "Jamundi Valle"]
[Date "2022.12.07"]
[Round "1.5"]
[White "Avila Pavas, Santiago"]
[Black "Paredes Lagos, Anthony Javier"]
[Result "0-1"]
[ECO "B90"]
[WhiteElo "2461"]
[BlackElo "2230"]
[Annotator "TA"]
[PlyCount "148"]
[EventDate "2022.12.05"]
[EventType "swiss"]
[EventCountry "COL"]
[SourceTitle "playchess.com"]
[Source "ChessBase"]
[SourceQuality "1"]
[TimeControl "5400+30"]

{[%evp 19,148,22,32,28,30,29,36,24,31,13,32,16,64,58,47,60,100,106,97,98,100,99,131,89,108,107,112,123,121,106,185,172,175,171,176,154,335,266,298,97,96,103,91,48,37,47,55,58,50,45,51,46,131,144,134,130,178,177,193,206,223,214,224,219,209,208,136,131,129,14,30,-43,-43,-186,-181,-163,-185,-152,-172,-506,-498,-484,-453,-467,-362,-364,-360,-346,-359,-356,-353,-339,-101,-309,-182,-161,-70,-152,-37,-37,-25,-64,0,0,0,-37,-39,-43,-47,-26,-8,-172,-173,-370,-242,-369,-362,-682,-678,-881,-888,-5089,-5073,-29989,-29990,-29992,-29989,-29989,-29990,-29996,-29997]} 1. e4 {[%emt 0:00:52]} c5 {[%emt 0:00:31]} 2. Nf3 {[%emt 0:00:07]} d6 {[%emt 0:00:34]} 3. d4 {[%emt 0:00:07]} cxd4 {[%emt 0:00:05]} 4. Nxd4 {[%emt 0:00:06]} Nf6 {[%emt 0:00:17]} 5. Nc3 {[%emt 0:00:12]} a6 {[%emt 0:00:19]} 6. Be3 {[%emt 0:00:08]} Ng4 {[%emt 0:03:42]} 7. Bc1 {[%emt 0:00:27]} Nf6 {[%emt 0:00:05]} 8. f3 {[%emt 0:00:57]} e5 {[%emt 0:00:05]} 9. Nb3 {[%emt 0:00:08]} Be6 {[%emt 0:00:34]} 10. Be3 {[%emt 0:00:09]} h5 {[%emt 0:00:18]} 11. Nd5 {[%emt 0:00:09] B90: Sicilian Najdorf: Unusual White 6th moves, 6 Be3 Ng4 and 6 Be3 e5.} Bxd5 {[%emt 0:01:14]} 12. exd5 {[%emt 0:00:10]} Nbd7 {[%emt 0:01:25]} 13. Qd2 {[%emt 0:00:09] White is slightly better.} g6 {[%emt 0:04:57] 13...Rc8 is a critical line.} 14. O-O-O {[%emt 0:02:06]} Bg7 {[%emt 0:01:05]} (14... Nb6 $5 {[%cal Rf6d5]}) 15. Kb1 {[%emt 0:00:14]} O-O {[%emt 0:01:02]} (15... b5 $11) 16. h3 $14 {[%emt 0:02:19]} Qc7 {[%emt 0:05:37]} 17. g4 {[%emt 0:02:11][%cal Bg2g4,Bg4g5][%mdl 32]} Rac8 {[%emt 0:09:10]} 18. g5 {[%emt 0:04:29] Prevents e4.} Nh7 {[%emt 0:00:12]} 19. h4 {[%emt 0:03:27] [#]} Rfe8 $146 {[%emt 0:04:48]} ({Predecessor:} 19... Nb6 20. Na5 e4 21. fxe4 Rfe8 22. Bh3 Rb8 23. Bg2 Nf8 24. Rc1 Na4 25. c4 Bxb2 26. Rc2 Bg7 27. Nb3 Nd7 {0-1 (46) Abdusattorov,N (2627)-Drygalov,A (2500) Chess.com INT 2021}) 20. Bh3 {[%emt 0:01:47]} Nhf8 {[%emt 0:00:35]} 21. Qc1 {[%emt 0:07:31]} a5 {[%emt 0:04:47]} 22. Nd2 {[%emt 0:00:31]} b5 {[%emt 0:00:18]} 23. Ne4 {[%emt 0:00:23]} Rb8 {[%emt 0:00:48]} 24. Qd2 {[%emt 0:01:09]} b4 {[%emt 0:05:31]} (24... Red8 $16 25. Rhf1 b4) 25. Rc1 $18 {[%emt 0:02:01]} f5 {[%emt 0:13:07]} 26. gxf6 {[%emt 0:00:18]} Nxf6 {[%emt 0:00:04]} 27. Rhg1 {[%emt 0:02:48][%cal Oh3f5] Threatens to win with Bf5!} N6h7 $2 {[%emt 0:13:26]} (27... Nxe4 $16 {is a better defense.} 28. fxe4 a4) 28. c4 {[%emt 0:11:12]} bxc3 {[%emt 0:01:10]} 29. Qxc3 {[%emt 0:03:57]} (29. Rxc3 $18 {and the rest is easy.} Qe7 30. Qc2) 29... Qxc3 $16 {[%emt 0:03:41]} 30. Rxc3 {[%emt 0:00:02][%cal Oc3c7] Black must now prevent Rc7!} Nf6 {[%emt 0:00:24]} 31. Rd1 {[%emt 0:00:06]} Nxe4 {[%emt 0:00:55]} 32. fxe4 {[%emt 0:00:02]} Rb4 {[%emt 0:00:07]} 33. Bg2 {[%emt 0:00:36]} Reb8 {[%emt 0:01:03]} 34. Rd2 {[%emt 0:02:04]} Nd7 {[%emt 0:03:34]} 35. Rc6 {[%emt 0:04:38]} Nf6 {[%emt 0:03:54]} (35... Bf8 $1 $14) 36. a3 $36 {[%emt 0:00:09][%mdl 2048] White is in control.} (36. Rxd6 $6 Nxe4 37. Bxe4 Rxe4 $14) 36... Rb3 {[%emt 0:01:51]} 37. Bg5 {[%emt 0:00:06]} Ne8 {[%emt 0:08:39]} (37... Nh7 $16 {keeps fighting.}) 38. Ka2 $1 $18 {[%emt 0:00:05]} Kh7 {[%emt 0:01:59]} 39. Ra6 $1 {[%emt 0:08:25]} Bh6 {[%emt 0:00:52]} 40. Rxa5 {[%emt 0:08:53]} (40. Ra7+ R8b7 $14) 40... Bxg5 {[%emt 0:00:06]} 41. hxg5 {[%emt 0:00:04]} Rg3 {[%emt 0:00:39]} 42. Ra7+ {[%emt 0:00:54]} Ng7 {[%emt 0:00:06][%cal Oh5h4]} 43. Rf2 {[%emt 0:05:42] Against h4} Rxg5 {[%emt 0:00:46]} 44. Bf1 {[%emt 0:00:32]} (44. a4 $16) 44... Kh6 $1 $11 {[%emt 0:00:43]} 45. Rff7 {[%emt 0:01:11]} (45. Rd7 $11) 45... Rg1 $1 $15 {[%emt 0:00:06]} 46. b4 {[%emt 0:01:32] Prevents h4.} (46. a4 $1 $15) 46... h4 $1 $19 {[%emt 0:00:05]} 47. Rad7 {[%emt 0:20:50] [#]} Nh5 {[%emt 0:00:31]} 48. Rf2 {[%emt 0:00:01]} (48. Rxd6 $2 Nf4 49. Rc6 Rxf1 $19) 48... Ng3 {[%emt 0:01:02][%csl LRe4,LRf1]} 49. Bh3 {[%emt 0:01:05]} (49. Bg2 {was the crucial defense.}) 49... Nxe4 {[%emt 0:00:29]} 50. Rh2 {[%emt 0:00:34]} Nc3+ {[%emt 0:01:15]} 51. Kb2 {[%emt 0:00:30]} Nxd5 {[%emt 0:00:40]} 52. Rxd6 {[%emt 0:00:13]} Nf4 {[%emt 0:00:31]} 53. Bd7 {[%emt 0:00:13]} Kh5 {[%emt 0:01:13]} 54. Rf6 {[%emt 0:01:58]} Rd8 {[%emt 0:00:18]} 55. Rf7 {[%emt 0:00:11]} Rd1 $2 {[%emt 0:01:21]} (55... g5 $19 {and Black stays clearly on top.} 56. b5 Kg6) 56. Rh7+ $17 {[%emt 0:00:38]} Kg5 {[%emt 0:00:06]} 57. Bc6 {[%emt 0:00:03]} Nd3+ {[%emt 0:02:57]} (57... R1d4 $19 {And now ...h3 would win.} 58. b5 e4) 58. Kb3 {[%emt 0:00:27]} ({White should play} 58. Ka2 $1 $15) 58... Rc1 {[%emt 0:00:41]} (58... Rd4 $17 {Strongly threatening ...Re1.} 59. Bb5 Rg1) 59. Be4 $15 {[%emt 0:00:34]} Nf4 {[%emt 0:01:33] Inhibits Rg2+.} 60. R7xh4 {[%emt 0:00:44]} Rd4 {[%emt 0:00:23] Black is more active.} ({Better is} 60... Re1 $15 61. Bc2 e4) 61. Bc2 $1 $11 {[%emt 0:01:02]} e4 {[%emt 0:00:40]} 62. Rh7 {[%emt 0:00:37]} e3 {[%emt 0:00:34]} 63. Re7 $1 {[%emt 0:00:01]} Re1 {[%emt 0:00:57]} 64. Rh8 {[%emt 0:00:39]} Rd2 {[%emt 0:00:41]} (64... Kf6 {keeps more tension.} 65. Rhe8 e2 66. b5 Rd8) 65. Rc8 $2 {[%emt 0:02:09] [#]} (65. Rg8 $11) 65... e2 $1 $19 {[%emt 0:00:29]} 66. Rc5+ $2 {[%emt 0:01:10]} (66. Rce8) 66... Kg4 {[%emt 0:00:10] aiming for ...Rf1.} 67. b5 {[%emt 0:00:26]} (67. Rce5 $142) 67... Rh1 {[%emt 0:00:28]} 68. b6 $2 {[%emt 0:01:40]} (68. Rc4 e1=Q 69. Rxe1 Rxe1 70. a4) 68... Rd6 {[%emt 0:00:42]} ({Inferior is} 68... e1=R 69. Rxe1 Rxe1 70. b7 Re3+ 71. Ka4 $11) (68... e1=B 69. b7 Rh3+ 70. Ka2 $18 (70. Ka4 Bf2 $18)) 69. Rb5 {[%emt 0:00:12]} Ne6 {[%emt 0:00:53]} (69... e1=B $2 70. b7 Rd8 71. b8=Q Rh3+ 72. Ka2 Rxb8 73. Bd1+ Kg3 74. Rxb8 $18) (69... e1=Q 70. Rxe1 Rxe1 71. b7 $11) (69... Rd7 70. Re8 $17) 70. Rb4+ {[%emt 0:01:14]} Kg5 {[%emt 0:00:12]} 71. b7 {[%emt 0:02:03]} e1=Q {[%emt 0:00:40] Black mates.} (71... e1=B 72. b8=Q (72. b8=R Bxb4 73. Rxb4 Rh2 $15) 72... Nc5+ 73. Kb2 Bxb4 74. axb4 $18 (74. Qxd6 Na4+ 75. Bxa4 Bxd6 $11)) 72. b8=Q {[%emt 0:00:01]} Nc5+ {[%emt 0:00:05]} 73. Kc4 {[%emt 0:01:16]} Qxe7 {[%emt 0:00:03]} 74. Rb5 {[%emt 0:00:00]} Rh4+ {[%emt 0:00:31] A wild game.   Weighted Error Value: White=0.30/Black=0.31} 0-1

[Event "ITT 1st Parada Jamundi 2022"]
[Site "Jamundi Valle"]
[Date "2022.12.07"]
[Round "1.6"]
[White "Arango Arenas, Juan Camilo"]
[Black "Mirzoev, Azer"]
[Result "0-1"]
[ECO "C56"]
[WhiteElo "2202"]
[BlackElo "2462"]
[Annotator "TA"]
[PlyCount "84"]
[EventDate "2022.12.05"]
[EventType "swiss"]
[EventCountry "COL"]
[SourceTitle "playchess.com"]
[Source "ChessBase"]
[SourceQuality "1"]
[TimeControl "5400+30"]

{[%evp 15,84,0,0,0,0,-62,-3,-31,-43,-39,-21,-33,-29,-31,-25,-40,-40,-43,-30,-93,0,0,0,0,0,-14,0,-32,-39,-53,-49,-99,-70,-70,-66,-77,-52,-46,-31,-140,-74,-756,-754,-836,-886,-883,-885,-855,-833,-821,-797,-1982,-607,-551,-564,-893,-857,-900,-891,-920,-904,-1091,-1125,-2094,-1253,-1225,-1206,-1177,-1184,-1650,-1614]} 1. e4 {[%emt 0:00:18]} e5 {[%emt 0:00:14]} 2. Nf3 {[%emt 0:00:21]} Nc6 {[%emt 0:00:12]} 3. d4 {[%emt 0:01:07]} exd4 {[%emt 0:00:06]} 4. Bc4 {[%emt 0:00:10]} Nf6 {[%emt 0:02:19]} 5. e5 {[%emt 0:00:45]} d5 {[%emt 0:00:12]} 6. Bb5 {[%emt 0:00:31]} Nd7 {[%emt 0:00:29]} 7. O-O {[%emt 0:01:18]} Be7 {[%emt 0:00:20]} 8. Bxc6 {[%emt 0:08:20]} bxc6 {[%emt 0:00:07]} 9. Nxd4 {[%emt 0:05:21] C56: Two Knights: 4 d4 exd4 5 0-0 Nxe4.} Nb8 {[%emt 0:00:20]} 10. Qh5 {[%emt 0:02:27]} (10. Nc3 $11) 10... O-O {[%emt 0:04:09]} (10... c5 $15 11. Ne2 Nc6) 11. Nf5 {[%emt 0:00:32] The position is equal.} Bxf5 {[%emt 0:00:20]} 12. Qxf5 {[%emt 0:00:02]} Qd7 {[%emt 0:01:07]} 13. Qd3 {[%emt 0:18:42] [#]} a5 $146 {[%emt 0:01:05]} ({Predecessor:} 13... Qe6 14. Bf4 Nd7 15. Qg3 f6 16. exf6 Nxf6 17. Qd3 Ne4 18. Be3 c5 19. Nc3 Nxc3 20. bxc3 {0-1 (82) Quparadze,G (2501)-Pashikian,A (2616) Skopje 2019}) 14. Nc3 {[%emt 0:01:02]} Na6 {[%emt 0:00:24]} 15. Qg3 {[%emt 0:00:22] Threatens to win with Bh6.} Rfe8 {[%emt 0:02:13]} 16. Ne2 {[%emt 0:03:59]} Nc5 {[%emt 0:02:03]} 17. f3 {[%emt 0:10:55] [#]} (17. Bf4 $11 {keeps the balance.}) 17... Ne6 {[%emt 0:10:08]} ({Black should play} 17... f6 $1 $17 18. exf6 Bxf6) 18. Be3 {[%emt 0:05:18]} c5 {[%emt 0:01:05]} 19. f4 {[%emt 0:01:30]} f5 {[%emt 0:02:04]} 20. Rad1 {[%emt 0:06:20]} c6 {[%emt 0:02:11]} 21. Qh3 {[%emt 0:02:15]} g6 {[%emt 0:00:27]} 22. Bf2 {[%emt 0:02:17]} a4 {[%emt 0:03:27]} 23. Bh4 {[%emt 0:04:27]} (23. b3 $15) 23... c4 {[%emt 0:04:04]} 24. Bxe7 {[%emt 0:00:49]} Rxe7 {[%emt 0:00:56]} 25. Nd4 {[%emt 0:13:44]} Nxd4 {[%emt 0:02:53]} (25... Qa7 $5 {[%cal Re6d4]} 26. Qc3 Rb7 $17) 26. Rxd4 {[%emt 0:00:02]} Qa7 {[%emt 0:00:10]} 27. c3 {[%emt 0:01:42]} ({White should try} 27. Rfd1 $15) 27... a3 {[%emt 0:00:52]} (27... Rb8 $142 28. g4 Rxb2 29. gxf5 Qd7) 28. b4 {[%emt 0:04:20][%mdl 8192] White does not recover from this.} (28. bxa3 $17 Qc5 29. Kh1) 28... cxb3 $19 {[%emt 0:00:22] Black is clearly winning.} 29. axb3 {[%emt 0:00:01]} a2 {[%emt 0:06:23]} 30. Ra1 {[%emt 0:00:01]} Rb7 {[%emt 0:00:19]} 31. Kh1 {[%emt 0:04:26]} Rxb3 {[%emt 0:00:59] ( -> ...Qxd4)} 32. Rdd1 {[%emt 0:00:05]} Qf2 {[%emt 0:04:21]} 33. Qh6 {[%emt 0:01:16]} Rxc3 {[%emt 0:06:58]} (33... Qc2 $142 34. h3 {[#]} Qxd1+ $3 {[%mdl 512]} 35. Rxd1 Rb1 36. Rxb1 axb1=Q+ 37. Kh2 Qe1) 34. Qg5 {[%emt 0:02:45]} Rc2 35. h4 {[%emt 0:00:00]} Qe2 {[%emt 0:01:58]} 36. Re1 {[%emt 0:00:00]} Qg4 {[%emt 0:00:22]} 37. Qxg4 {[%emt 0:00:24]} fxg4 {[%emt 0:00:07] KRR-KRR} 38. Kh2 {[%emt 0:00:58]} Kf7 {[%emt 0:00:13]} 39. Kg3 {[%emt 0:00:12]} h5 {[%emt 0:00:52] Strongly threatening ...Ra3+.} 40. f5 {[%emt 0:00:54]} gxf5 {[%emt 0:00:09] White must now prevent ...Ra3+.} 41. Kf4 {[%emt 0:00:07]} Ke6 {[%emt 0:02:18][%cal Oc6c5] And now ...c5! would win.} 42. g3 {[%emt 0:01:25]} d4 {Weighted Error Value: White=0.77/Black=0.44} 0-1

[Event "ITT 1st Parada Jamundi 2022"]
[Site "Jamundi Valle"]
[Date "2022.12.07"]
[Round "1.7"]
[White "Cori Quispe, Kevin Joel"]
[Black "Argote Heredia, Valentina"]
[Result "1-0"]
[ECO "B40"]
[WhiteElo "2469"]
[BlackElo "2140"]
[Annotator "TA"]
[PlyCount "68"]
[EventDate "2022.12.05"]
[EventType "swiss"]
[EventCountry "COL"]
[SourceTitle "playchess.com"]
[Source "ChessBase"]
[SourceQuality "1"]
[TimeControl "5400+30"]

{[%evp 9,68,20,26,22,11,21,33,20,20,29,8,-9,17,0,0,-10,1,-3,0,3,16,22,15,17,17,12,54,25,75,37,23,-74,45,67,69,68,108,0,0,0,0,0,42,56,281,247,787,765,1177,1106,1522,1412,29991,5643,29977,29978,29988,29989,29987,29988,29994]} 1. e4 {[%emt 0:00:08][%cal Be2e4,Be4e5][%mdl 32]} c5 {[%emt 0:00:03]} 2. Nf3 {[%emt 0:00:16]} e6 {[%emt 0:00:16]} 3. b3 {[%emt 0:02:26]} Nf6 {[%emt 0:00:23][%cal Bg8f6,Bf6d5,Bd5b4,Bb4c6,Bc6e5][%mdl 32]} 4. e5 {[%emt 0:01:41]} Nd5 {[%emt 0:00:05]} 5. c4 {[%emt 0:00:37]} Nb4 {[%emt 0:02:38]} 6. a3 {[%emt 0:05:57] Against d5. B40: Sicilian: 2...e6, Unusual lines.} N4c6 {[%emt 0:00:33]} 7. Bb2 {[%emt 0:00:10]} d6 {[%emt 0:08:08]} 8. exd6 $1 {[%emt 0:03:39] White is slightly better.} Qxd6 {[%emt 0:00:08] [#]} 9. g3 $146 {[%emt 0:03:01]} ({Predecessor:} 9. Nc3 Qd8 10. Ne2 e5 11. Ng3 f6 12. Qc2 Bg4 13. Be2 Qd7 14. h3 Be6 15. O-O {1-0 (41) Sousa,A (2386)-Fernandes,A (2457) Vila Nova de Gaia 2017}) 9... f6 {[%emt 0:03:52]} 10. Nh4 {[%emt 0:04:08]} Ne5 {[%emt 0:02:18]} 11. Qh5+ {[%emt 0:03:38]} Nf7 {[%emt 0:01:09]} 12. Bg2 {[%emt 0:01:08]} g6 {[%emt 0:00:55]} 13. Qe2 {[%emt 0:05:00]} Bg7 {[%emt 0:06:21]} 14. Nc3 {[%emt 0:00:28][%cal Ob3b4]} O-O {[%emt 0:00:27]} 15. Ne4 {[%emt 0:01:15]} Qe7 {[%emt 0:00:10]} 16. Qe3 {[%emt 0:00:49]} Nd7 {[%emt 0:00:10]} 17. f4 $36 {[%emt 0:00:55][%mdl 2048] White is more active.} e5 {[%emt 0:08:04]} 18. Nc3 {[%emt 0:04:40]} Qd6 {[%emt 0:03:55]} (18... Qd8 $11 {remains equal.}) 19. O-O {[%emt 0:16:07]} f5 {[%emt 0:00:55] And now ...exf4 would win.} 20. Kh1 {[%emt 0:10:23] [#]} (20. Nd5 $11) 20... a6 {[%emt 0:03:55]} (20... exf4 $1 $17 21. gxf4 Nf6) 21. Nd5 $14 {[%emt 0:15:15]} Rb8 {[%emt 0:04:08]} 22. Rae1 {[%emt 0:02:15] Threatens to win with fxe5. White is much more active. The black rooks are badly placed.} b5 {[%emt 0:00:48]} 23. Bc3 {[%emt 0:03:03]} (23. fxe5 $16 Ndxe5 24. Nf3 Nxf3 25. Ne7+ Kh8 26. Bxg7+ (26. Bxf3 $2 Bxb2 27. Nxc8 Rbxc8 $19) 26... Kxg7 27. Rxf3 (27. Bxf3 bxc4 28. bxc4 Qd4 $11)) 23... Bb7 $1 $11 {[%emt 0:02:52]} 24. g4 {[%emt 0:05:42]} fxg4 {[%emt 0:07:52]} 25. f5 {[%emt 0:01:10]} Bh6 {[%emt 0:01:21]} 26. Qg3 {[%emt 0:03:55] aiming for fxg6.} Bxd5 $2 {[%emt 0:11:39] Black cannot hold the game after this.} (26... g5 $1 $14) 27. Bxd5 $18 {[%emt 0:00:18] Strongly threatening fxg6.} Bf4 $2 {[%emt 0:00:20] [#]} (27... g5) 28. Rxf4 $1 {[%emt 0:02:53][%mdl 576]} exf4 {[%emt 0:00:06]} (28... bxc4 29. Bxf7+) 29. Qd3 {[%emt 0:00:07] White wants to mate with Bxf7+.} Nde5 {[%emt 0:08:59]} 30. Bxe5 {[%emt 0:00:27] Threatening mate with Bxf7+. A strong pair of Bishops.} Qe7 {[%emt 0:01:08]} 31. f6 {[%emt 0:00:09]} (31. Bxb8 Qxe1+ 32. Kg2 g5 33. Bxf7+ Kxf7 34. Qd5+ Kf6 35. Qd6+ Kg7 36. Qe5+ Qxe5 37. Bxe5+ Kf7 $19) (31. fxg6 $142 Qxh4 32. Rg1 Rfe8 33. gxf7+ Kf8 34. fxe8=Q+ Kxe8 35. Bc6+ Kf7 36. Qf5+ Ke7 37. Qd7+ Kf8 38. Qg7#) 31... Qd7 {[%emt 0:00:32]} 32. Nxg6 {[%emt 0:00:22] White mates.} Rbe8 {[%emt 0:00:44]} 33. Nxf8 {[%emt 0:00:38]} Rxf8 {[%emt 0:00:25]} 34. Bxf4 {[%emt 0:00:08]} Qd8 {[%emt 0:22:11] Weighted Error Value: White=0.13 (very precise) /Black=0.55} 1-0

[Event "ITT 1st Parada Jamundi 2022"]
[Site "Jamundi Valle"]
[Date "2022.12.07"]
[Round "1.8"]
[White "Valdes Martinez, Miguel A."]
[Black "Larino Nieto, David"]
[Result "1/2-1/2"]
[ECO "A41"]
[WhiteElo "2104"]
[BlackElo "2466"]
[Annotator "TA"]
[PlyCount "134"]
[EventDate "2022.12.05"]
[EventType "swiss"]
[EventCountry "COL"]
[SourceTitle "playchess.com"]
[Source "ChessBase"]
[SourceQuality "1"]
[TimeControl "5400+30"]

{[%evp 9,134,0,33,31,33,28,70,66,56,63,52,64,89,82,91,22,118,139,108,58,84,60,92,95,90,103,252,234,415,397,395,130,156,91,95,101,74,83,79,51,68,-77,-77,-77,-77,-77,-77,-79,-56,-56,-33,-107,-103,-115,-112,-109,-123,-80,-56,-202,-203,-405,-405,-363,-371,-341,-89,-88,-89,-89,-89,-84,-88,-88,-83,-91,0,0,0,0,0,-272,596,549,755,690,2891,11809,2814,5786,5181,2412,12838,12839,12842,12843,12845,0,0,0,0,0,0,0,0,0,0,0,0,0,0,0,0,0,0,0,0,0,0,0,0,0,0,0,0,0,0]} 1. d4 {[%emt 0:00:18]} d6 {[%emt 0:00:52]} 2. Nf3 {[%emt 0:00:15]} Nd7 {[%emt 0:00:01]} 3. e3 {[%emt 0:00:22]} b6 {[%emt 0:00:15]} 4. Nbd2 {[%emt 0:00:38]} Bb7 {[%emt 0:00:01] [#]} 5. a4 $146 {[%emt 0:00:36]} ({Predecessor:} 5. b3 g6 6. Bb2 Bg7 7. Bd3 e6 8. O-O Ne7 9. Rc1 O-O 10. Re1 e5 11. c4 {0-1 (49) Zanin,L (1655)-Negro,R (1838) Casaleone 2013}) 5... a5 {[%emt 0:00:06]} 6. Bb5 {[%emt 0:00:35] A41: 1 d4 d6: Tartakower System and Modern Defence.} e6 {[%emt 0:00:03]} 7. O-O {[%emt 0:00:35]} g5 {[%emt 0:00:01]} 8. Qe2 {[%emt 0:05:07] White is slightly better.} g4 {[%emt 0:01:14]} 9. Ne1 {[%emt 0:00:13]} h5 {[%emt 0:00:04]} 10. e4 {[%emt 0:04:15]} Bg7 {[%emt 0:01:32]} 11. c3 {[%emt 0:02:56]} Ne7 {[%emt 0:00:34]} 12. f4 {[%emt 0:07:37]} ({Better is} 12. f3 $16) 12... e5 {[%emt 0:01:42]} (12... f5 $11 {keeps the balance.}) 13. fxe5 $16 {[%emt 0:04:37]} dxe5 {[%emt 0:00:02]} 14. dxe5 {[%emt 0:07:13] White is more active.} (14. Nc2 $16) 14... c6 {[%emt 0:08:24]} 15. e6 {[%emt 0:10:21]} fxe6 {[%emt 0:00:56]} 16. Bc4 {[%emt 0:02:52]} (16. Qf2 $6 Ne5 17. Be2 Rf8 $11) 16... Ne5 {[%emt 0:00:39]} 17. Nc2 {[%emt 0:06:39]} Bh6 {[%emt 0:12:20]} (17... N7g6 $16) 18. Nd4 $18 {[%emt 0:08:16]} (18. Bxe6 Qd3 $18) 18... Qd6 {[%emt 0:00:43]} (18... Bc8 19. N2b3 (19. Bxe6 Bxe6 20. Nxe6 Qc8 $16) 19... Nxc4) 19. Rf6 {[%emt 0:03:25]} (19. Bxe6 Ba6 20. Nc4 Bxc4 21. Bxc4 O-O-O $18) 19... O-O-O {[%emt 0:08:31]} 20. Rxe6 {[%emt 0:04:29]} (20. Bxe6+ $18 {has better winning chances.} Kb8 21. Nc4 Nxc4 22. Bxh6 (22. Rxh6 Rxh6 23. Bxc4 Rg6 $14)) 20... Qc7 {[%emt 0:00:10]} 21. Rxh6 {[%emt 0:05:50]} Rxh6 $16 {[%emt 0:00:15]} 22. Ne6 {[%emt 0:00:06]} Rxe6 {[%emt 0:01:54]} 23. Bxe6+ {[%emt 0:00:08]} Kb8 {[%emt 0:00:03]} 24. Nc4 {[%emt 0:02:02] Inhibits Qd6.} (24. Nf1 {simplifies} N5g6 25. Bb3 Nf4 26. Bxf4 Qxf4 27. Re1) 24... Ba6 $1 {[%emt 0:00:39]} 25. Bg5 {[%emt 0:01:06]} (25. Bf4 $14 {stays ahead.} N7g6 26. Nxe5 $1 Nxf4 27. Qxa6 Nxe6 28. Nc4) 25... Rd6 $17 {[%emt 0:00:25][%cal Bd8d6,Bd6e6,Be6e5][%mdl 96] Pin} 26. Qf2 {[%emt 0:12:43]} Rxe6 {[%emt 0:01:11]} (26... Nxc4 27. Qf8+ Ka7 28. Bxc4 (28. Qxe7 $2 Qxe7 29. Bxe7 Rxe6 $19) 28... Bxc4 29. Bxe7 $11 (29. Qxe7 Qxe7 30. Bxe7 Re6 $15)) 27. Nxe5 {[%emt 0:00:05]} Rxe5 {[%emt 0:00:08]} 28. Bf4 {[%emt 0:00:04] [#]} Ng6 {[%emt 0:00:12]} 29. Bg3 {[%emt 0:02:46]} Ka7 {[%emt 0:04:33][%cal Oc7e7]} 30. Qf6 {[%emt 0:01:17] [#]} (30. b4 $1 $15) 30... h4 $1 {[%emt 0:00:08]} 31. Bxe5 {[%emt 0:00:01]} Nxe5 {[%emt 0:00:02]} 32. Qxh4 {[%emt 0:00:13]} c5 {[%emt 0:00:01]} 33. Rd1 {[%emt 0:02:46]} Bd3 {[%emt 0:00:48]} 34. b3 {[%emt 0:02:00]} (34. Qf6 $15) 34... Bc2 $1 $19 {[%emt 0:03:06]} (34... Bxe4 35. Re1 Bxg2 36. Kxg2 Qc6+ 37. Kf2 Nd3+ 38. Ke2 Nf4+ 39. Kd2 Qg2+ 40. Kc1 Nd3+ 41. Kd1 $11) 35. Qd8 {[%emt 0:01:40]} (35. Rf1) 35... Qxd8 {[%emt 0:00:40]} 36. Rxd8 {[%emt 0:00:01]} Bxb3 {[%emt 0:00:10]} 37. Re8 {[%emt 0:00:13]} Nd7 {[%emt 0:00:31]} (37... Bxa4 38. Rxe5 Bb3 39. Re7+ Ka6 40. e5 $16) (37... Nc4 $19 {and Black stays clearly on top.} 38. Re7+ Ka6) 38. e5 $17 {[%emt 0:00:30] And now Re7 would win.} Bxa4 {[%emt 0:00:08]} 39. e6 {[%emt 0:00:16]} Nf6 {[%emt 0:00:27]} 40. Rf8 {[%emt 0:00:52]} Ne8 {[%emt 0:01:44]} 41. h4 {[%emt 0:00:14]} gxh3 {[%emt 0:00:05]} 42. gxh3 {[%emt 0:00:01]} Bc6 {[%emt 0:01:47]} (42... Nc7 $17 43. e7 Be8) 43. h4 $11 {[%emt 0:01:10] aiming for h5.} a4 {[%emt 0:00:01]} 44. h5 {[%emt 0:00:12]} a3 {[%emt 0:00:01] White must now prevent ...b5.} 45. h6 $2 {[%emt 0:01:15][%mdl 8192] [#]} (45. c4 $11) 45... a2 $4 {[%emt 0:00:08][%mdl 8192]} (45... Be4 $1 $19 {avoids the disaster.} 46. Rf2 (46. Rxe8 $2 a2 $19) (46. Rf1 b5) 46... b5) 46. Rf1 $1 $18 {[%emt 0:00:07] Threatens to win with h7.} Nf6 {[%emt 0:00:08][%cal Oa7b7] [#]} 47. Ra1 $1 {[%emt 0:01:02][%mdl 64]} b5 {[%emt 0:10:54]} 48. Rxa2+ {[%emt 0:00:17]} Kb6 {[%emt 0:00:01]} 49. Rf2 {[%emt 0:00:16]} Nh7 {[%emt 0:00:08]} 50. e7 {[%emt 0:03:23] Strongly threatening Rf7.} b4 {[%emt 0:02:07]} 51. cxb4 {[%emt 0:00:01]} cxb4 {[%emt 0:00:02]} 52. Rf8 {[%emt 0:00:21]} b3 {[%emt 0:00:06] [#]} 53. e8=Q $2 {[%emt 0:00:02]} (53. e8=R Nxf8 54. Rxf8 b2 $11) ({White must play} 53. Rb8+ $1 $18 Kc5 54. Rxb3 (54. e8=B Bxe8 55. Rxb3 Bg6 $11)) 53... Bxe8 $11 {[%emt 0:00:04] The position is equal.} 54. Rxe8 {[%emt 0:00:09][%mdl 4096] Endgame KR-KN} Kc5 {[%emt 0:00:01]} 55. Rb8 {[%emt 0:00:51]} Kc4 {[%emt 0:00:11]} 56. Rb7 {[%emt 0:00:03]} Nf6 {[%emt 0:01:03]} 57. Kg2 {[%emt 0:02:23]} Kc3 {[%emt 0:00:06]} 58. Kf3 {[%emt 0:00:06]} b2 {[%emt 0:00:01]} 59. Rxb2 {[%emt 0:01:20]} Kxb2 {[%emt 0:00:02] KN-KP} 60. Kf4 {[%emt 0:00:00]} Kc3 {[%emt 0:00:22]} 61. Kf5 {[%emt 0:00:09]} (61. Kg5 $5 Nh7+ $8 62. Kh5 $11) 61... Nh7 {[%emt 0:00:07]} 62. Kg6 {[%emt 0:00:09]} Nf8+ {[%emt 0:00:07]} 63. Kg7 {[%emt 0:00:05]} Ne6+ {[%emt 0:00:05]} 64. Kf6 {[%emt 0:00:44]} (64. Kf7 $5 Ng5+ $8 65. Kg8 $11 (65. Kg6 Ne6 $11)) 64... Nf8 {[%emt 0:00:03]} 65. Kf7 {[%emt 0:00:57]} (65. Kg7 $5 Ne6+ $8 66. Kh8 $11) 65... Nh7 {[%emt 0:00:01]} 66. Kg6 {[%emt 0:00:11]} Nf8+ {[%emt 0:00:04]} 67. Kg7 {[%emt 0:00:02]} Ne6+ {[%emt 0:00:08] White used his chance.   Weighted Error Value: White=0.50/Black=0.41} 1/2-1/2